[Event "Titled Tuesday Blitz October 04 Early 2022"]
[White "Bortnyk, Mykola"]
[Black "Winterberg, Lukas"]
[WhiteFideId "14120836"]
[BlackFideId "24622702"]
[WhiteElo "2582"]
[BlackElo "2349"]
[Result "1-0"]
[Round "01"]
[TimeControl "180+1"]
[Date "2022.10.04"]
[WhiteClock "0:01:16"]
[BlackClock "0:01:23"]

1. e4 {[%clk 0:02:39]}  e6 {[%clk 0:02:59]} 2. d4 {[%clk 0:02:38]}  d5 {[%clk 0:03:00]} 3. Nc3 {[%clk 0:02:38]}  Nf6 {[%clk 0:03:00]} 4. e5 {[%clk 0:02:38]}  Nfd7 {[%clk 0:03:00]} 5. Nf3 {[%clk 0:02:38]}  c5 {[%clk 0:03:00]} 6. dxc5 {[%clk 0:02:39]}  Bxc5 {[%clk 0:02:58]} 7. Bd3 {[%clk 0:02:38]}  Nc6 {[%clk 0:02:58]} 8. Bf4 {[%clk 0:02:38]}  h6 {[%clk 0:02:58]} 9. h3 {[%clk 0:02:35]}  a6 {[%clk 0:02:58]} 10. O-O {[%clk 0:02:35]}  g5 {[%clk 0:02:56]} 11. Bg3 {[%clk 0:02:32]}  h5 {[%clk 0:02:56]} 12. Re1 {[%clk 0:02:29]}  g4 {[%clk 0:02:52]} 13. hxg4 {[%clk 0:02:24]}  hxg4 {[%clk 0:02:50]} 14. Nh2 {[%clk 0:02:25]}  Qg5 {[%clk 0:02:45]} 15. Qxg4 {[%clk 0:02:21]}  Qxg4 {[%clk 0:02:43]} 16. Nxg4 {[%clk 0:02:22]}  Rg8 {[%clk 0:02:44]} 17. Be2 {[%clk 0:02:18]}  b5 {[%clk 0:02:43]} 18. Kf1 {[%clk 0:02:11]}  Nd4 {[%clk 0:02:41]} 19. Bd1 {[%clk 0:02:08]}  Nxc2 {[%clk 0:02:37]} 20. Bxc2 {[%clk 0:01:59]}  Rxg4 {[%clk 0:02:37]} 21. Rac1 {[%clk 0:01:49]}  Bb7 {[%clk 0:02:36]} 22. Bd1 {[%clk 0:01:48]}  Rg7 {[%clk 0:02:25]} 23. a3 {[%clk 0:01:48]}  Rc8 {[%clk 0:02:20]} 24. Bf3 {[%clk 0:01:33]}  Nb6 {[%clk 0:02:18]} 25. Rc2 {[%clk 0:01:20]}  Nc4 {[%clk 0:02:07]} 26. a4 {[%clk 0:01:20]}  b4 {[%clk 0:02:02]} 27. Ne2 {[%clk 0:01:20]}  a5 {[%clk 0:01:58]} 28. Rxc4 {[%clk 0:01:18]}  dxc4 {[%clk 0:01:44]} 29. Bxb7 {[%clk 0:01:19]}  Rc7 {[%clk 0:01:45]} 30. Ba6 {[%clk 0:01:19]}  Bb6 {[%clk 0:01:28]} 31. Rd1 {[%clk 0:01:17]}  c3 {[%clk 0:01:24]} 32. Bb5+ {[%clk 0:01:16]}  Kf8 {[%clk 0:01:22]} 33. Rd8+ {[%clk 0:01:15]}  Ke7 {[%clk 0:01:23]} 34. Re8# {[%clk 0:01:16]} 1-0


[Site "https://www.chess.com"]

[Event "Titled Tuesday Blitz October 04 Early 2022"]
[White "Ezat, Mohamed"]
[Black "Eljanov, Pavel"]
[WhiteFideId "10600906"]
[BlackFideId "14102951"]
[WhiteElo "2386"]
[BlackElo "2601"]
[Result "0-1"]
[Round "01"]
[TimeControl "180+1"]
[Date "2022.10.04"]
[WhiteClock "0:00:04"]
[BlackClock "0:00:18"]

1. d4 {[%clk 0:03:00]}  Nf6 {[%clk 0:02:59]} 2. c4 {[%clk 0:03:00]}  e6 {[%clk 0:02:59]} 3. Nf3 {[%clk 0:02:59]}  b6 {[%clk 0:02:59]} 4. a3 {[%clk 0:02:59]}  Bb7 {[%clk 0:02:59]} 5. Nc3 {[%clk 0:02:59]}  d5 {[%clk 0:02:59]} 6. cxd5 {[%clk 0:03:00]}  Nxd5 {[%clk 0:03:00]} 7. Qc2 {[%clk 0:02:59]}  Nxc3 {[%clk 0:02:57]} 8. bxc3 {[%clk 0:02:57]}  Nd7 {[%clk 0:02:57]} 9. e4 {[%clk 0:02:58]}  c5 {[%clk 0:02:58]} 10. Bd3 {[%clk 0:02:58]}  Qc7 {[%clk 0:02:56]} 11. O-O {[%clk 0:02:33]}  cxd4 {[%clk 0:02:56]} 12. cxd4 {[%clk 0:02:32]}  Qxc2 {[%clk 0:02:57]} 13. Bxc2 {[%clk 0:02:32]}  Rc8 {[%clk 0:02:58]} 14. Bd3 {[%clk 0:02:30]}  Be7 {[%clk 0:02:40]} 15. a4 {[%clk 0:02:28]}  O-O {[%clk 0:02:30]} 16. a5 {[%clk 0:02:27]}  Nf6 {[%clk 0:02:28]} 17. axb6 {[%clk 0:02:27]}  Bxe4 {[%clk 0:02:06]} 18. Bxe4 {[%clk 0:02:25]}  Nxe4 {[%clk 0:02:07]} 19. bxa7 {[%clk 0:02:17]}  Ra8 {[%clk 0:02:07]} 20. Bf4 {[%clk 0:02:14]}  Rfc8 {[%clk 0:02:07]} 21. Rfe1 {[%clk 0:01:46]}  Nc3 {[%clk 0:01:58]} 22. Bb8 {[%clk 0:01:41]}  Kf8 {[%clk 0:01:51]} 23. Ne5 {[%clk 0:01:34]}  Ke8 {[%clk 0:01:51]} 24. Kf1 {[%clk 0:01:26]}  Nd5 {[%clk 0:01:44]} 25. Rec1 {[%clk 0:01:19]}  Rcxb8 {[%clk 0:01:32]} 26. axb8=Q+ {[%clk 0:01:17]}  Rxb8 {[%clk 0:01:33]} 27. Ra7 {[%clk 0:01:08]}  f6 {[%clk 0:01:26]} 28. Nd3 {[%clk 0:01:05]}  Kf7 {[%clk 0:01:13]} 29. g3 {[%clk 0:01:03]}  g5 {[%clk 0:01:12]} 30. Rca1 {[%clk 0:00:57]}  g4 {[%clk 0:01:08]} 31. Rd7 {[%clk 0:00:53]}  Ke8 {[%clk 0:00:59]} 32. Raa7 {[%clk 0:00:50]}  Rb1+ {[%clk 0:00:50]} 33. Kg2 {[%clk 0:00:49]}  Rd1 {[%clk 0:00:50]} 34. Nf4 {[%clk 0:00:43]}  Nxf4+ {[%clk 0:00:23]} 35. gxf4 {[%clk 0:00:42]}  Bc5 {[%clk 0:00:22]} 36. Rab7 {[%clk 0:00:27]}  Rxd4 {[%clk 0:00:20]} 37. Rxh7 {[%clk 0:00:22]}  Bf8 {[%clk 0:00:18]} 38. Rb8+ {[%clk 0:00:14]}  Rd8 {[%clk 0:00:17]} 39. Rxd8+ {[%clk 0:00:14]}  Kxd8 {[%clk 0:00:18]} 40. Rf7 {[%clk 0:00:12]}  Be7 {[%clk 0:00:18]} 41. Rg7 {[%clk 0:00:11]}  f5 {[%clk 0:00:18]} 42. f3 {[%clk 0:00:08]}  gxf3+ {[%clk 0:00:18]} 43. Kxf3 {[%clk 0:00:08]}  Ke8 {[%clk 0:00:19]} 44. Rg2 {[%clk 0:00:06]}  Kf7 {[%clk 0:00:19]} 45. Ke3 {[%clk 0:00:05]}  Bc5+ {[%clk 0:00:18]} 46. Kf3 {[%clk 0:00:04]}  Be7 {[%clk 0:00:18]} 47. Rg1 {[%clk 0:00:04]}  Kf6 {[%clk 0:00:18]} 0-1


[Site "https://www.chess.com"]

[Event "Titled Tuesday Blitz October 04 Early 2022"]
[White "Guerrero Olmos, Sergio"]
[Black "Harsha Bharathakoti"]
[WhiteFideId "2257238"]
[BlackFideId "5078776"]
[WhiteElo "2272"]
[BlackElo "2523"]
[Result "1-0"]
[Round "01"]
[TimeControl "180+1"]
[Date "2022.10.04"]
[WhiteClock "0:01:29"]
[BlackClock "0:00:15"]

1. d4 {[%clk 0:02:57]}  d5 {[%clk 0:02:57]} 2. Nf3 {[%clk 0:02:58]}  e6 {[%clk 0:02:51]} 3. Bf4 {[%clk 0:02:59]}  Nf6 {[%clk 0:02:43]} 4. e3 {[%clk 0:02:59]}  Bd6 {[%clk 0:02:43]} 5. Bg3 {[%clk 0:02:59]}  c5 {[%clk 0:02:43]} 6. Bb5+ {[%clk 0:02:57]}  Nc6 {[%clk 0:02:42]} 7. O-O {[%clk 0:02:55]}  O-O {[%clk 0:02:41]} 8. Nbd2 {[%clk 0:02:50]}  cxd4 {[%clk 0:02:22]} 9. exd4 {[%clk 0:02:48]}  Qc7 {[%clk 0:02:13]} 10. c3 {[%clk 0:02:45]}  Bd7 {[%clk 0:02:09]} 11. Qe2 {[%clk 0:02:41]}  Rab8 {[%clk 0:02:04]} 12. Rfe1 {[%clk 0:02:41]}  Ne7 {[%clk 0:02:02]} 13. Bd3 {[%clk 0:02:39]}  b5 {[%clk 0:01:59]} 14. Ne5 {[%clk 0:02:38]}  Ng6 {[%clk 0:01:54]} 15. a3 {[%clk 0:02:35]}  a5 {[%clk 0:01:52]} 16. h4 {[%clk 0:02:32]}  Ne7 {[%clk 0:01:45]} 17. Ndf3 {[%clk 0:02:25]}  Nf5 {[%clk 0:01:45]} 18. Bf4 {[%clk 0:02:20]}  b4 {[%clk 0:01:33]} 19. axb4 {[%clk 0:02:21]}  axb4 {[%clk 0:01:34]} 20. Rac1 {[%clk 0:02:09]}  bxc3 {[%clk 0:01:33]} 21. bxc3 {[%clk 0:02:05]}  Rfe8 {[%clk 0:00:49]} 22. c4 {[%clk 0:02:05]}  dxc4 {[%clk 0:00:48]} 23. Rxc4 {[%clk 0:02:04]}  Qa7 {[%clk 0:00:35]} 24. Ng5 {[%clk 0:01:48]}  Nd5 {[%clk 0:00:19]} 25. Qh5 {[%clk 0:01:33]}  Nh6 {[%clk 0:00:19]} 26. Bxh7+ {[%clk 0:01:32]}  Kf8 {[%clk 0:00:17]} 27. Ng6+ {[%clk 0:01:31]}  fxg6 {[%clk 0:00:17]} 28. Bxd6+ {[%clk 0:01:31]}  Ne7 {[%clk 0:00:15]} 29. Qxg6 {[%clk 0:01:29]} 1-0


[Site "https://www.chess.com"]

[Event "Titled Tuesday Blitz October 04 Early 2022"]
[White "Jobava, Baadur"]
[Black "Iljin, Timofey"]
[WhiteFideId "13601520"]
[BlackFideId "14110180"]
[WhiteElo "2582"]
[BlackElo "2404"]
[Result "1-0"]
[Round "01"]
[TimeControl "180+1"]
[Date "2022.10.04"]
[WhiteClock "0:01:53"]
[BlackClock "0:00:02"]

1. b3 {[%clk 0:02:59]}  e5 {[%clk 0:02:57]} 2. Bb2 {[%clk 0:03:00]}  d6 {[%clk 0:02:58]} 3. e3 {[%clk 0:02:59]}  f5 {[%clk 0:02:58]} 4. d4 {[%clk 0:02:59]}  Nc6 {[%clk 0:02:55]} 5. dxe5 {[%clk 0:02:59]}  dxe5 {[%clk 0:02:56]} 6. Qxd8+ {[%clk 0:02:59]}  Kxd8 {[%clk 0:02:57]} 7. Nf3 {[%clk 0:02:57]}  e4 {[%clk 0:02:53]} 8. Ng5 {[%clk 0:02:57]}  Ke8 {[%clk 0:02:44]} 9. Bc4 {[%clk 0:02:50]}  Nh6 {[%clk 0:02:18]} 10. h4 {[%clk 0:02:30]}  Na5 {[%clk 0:02:06]} 11. Bb5+ {[%clk 0:02:27]}  c6 {[%clk 0:02:06]} 12. Be2 {[%clk 0:02:27]}  b6 {[%clk 0:01:31]} 13. Nd2 {[%clk 0:02:18]}  Bd7 {[%clk 0:01:10]} 14. O-O-O {[%clk 0:02:16]}  Rg8 {[%clk 0:00:52]} 15. Nc4 {[%clk 0:02:12]}  Nxc4 {[%clk 0:00:38]} 16. Bxc4 {[%clk 0:02:13]}  Rh8 {[%clk 0:00:38]} 17. f3 {[%clk 0:02:13]}  b5 {[%clk 0:00:35]} 18. Be6 {[%clk 0:02:09]}  Bxe6 {[%clk 0:00:20]} 19. Nxe6 {[%clk 0:02:10]}  Kf7 {[%clk 0:00:21]} 20. Nxf8 {[%clk 0:02:07]}  Rhxf8 {[%clk 0:00:20]} 21. Rd7+ {[%clk 0:02:06]}  Ke6 {[%clk 0:00:20]} 22. Rxg7 {[%clk 0:01:55]}  Rg8 {[%clk 0:00:20]} 23. Rxh7 {[%clk 0:01:54]}  Nf7 {[%clk 0:00:19]} 24. fxe4 {[%clk 0:01:54]}  fxe4 {[%clk 0:00:20]} 25. Rf1 {[%clk 0:01:54]}  Nd6 {[%clk 0:00:04]} 26. Rf6+ {[%clk 0:01:53]}  Kd5 {[%clk 0:00:03]} 27. Rh5+ {[%clk 0:01:54]}  Nf5 {[%clk 0:00:02]} 28. Rhxf5# {[%clk 0:01:53]} 1-0


[Site "https://www.chess.com"]

[Event "Titled Tuesday Blitz October 04 Early 2022"]
[White "Kamsky, Gata"]
[Black "Grunberg, Mihai-Lucian"]
[WhiteFideId "2000024"]
[BlackFideId "1204149"]
[WhiteElo "2666"]
[BlackElo "2364"]
[Result "1-0"]
[Round "01"]
[TimeControl "180+1"]
[Date "2022.10.04"]
[WhiteClock "0:00:21"]
[BlackClock "0:00:28"]

1. e4 {[%clk 0:02:57]}  Nf6 {[%clk 0:02:59]} 2. e5 {[%clk 0:02:54]}  Nd5 {[%clk 0:02:58]} 3. d4 {[%clk 0:02:51]}  d6 {[%clk 0:02:58]} 4. Nf3 {[%clk 0:02:51]}  dxe5 {[%clk 0:02:57]} 5. Nxe5 {[%clk 0:02:50]}  c6 {[%clk 0:02:58]} 6. Be2 {[%clk 0:02:49]}  Bf5 {[%clk 0:02:57]} 7. O-O {[%clk 0:02:48]}  Nd7 {[%clk 0:02:56]} 8. Nf3 {[%clk 0:02:46]}  e6 {[%clk 0:02:56]} 9. c4 {[%clk 0:02:45]}  Nb4 {[%clk 0:02:55]} 10. Na3 {[%clk 0:01:08]}  Be7 {[%clk 0:02:52]} 11. Be3 {[%clk 0:01:05]}  O-O {[%clk 0:02:51]} 12. Ne1 {[%clk 0:01:04]}  e5 {[%clk 0:02:37]} 13. Nac2 {[%clk 0:00:59]}  Nxc2 {[%clk 0:02:22]} 14. Nxc2 {[%clk 0:00:58]}  Bxc2 {[%clk 0:02:21]} 15. Qxc2 {[%clk 0:00:57]}  exd4 {[%clk 0:02:21]} 16. Bxd4 {[%clk 0:00:57]}  Bf6 {[%clk 0:02:19]} 17. Be3 {[%clk 0:00:57]}  Qe7 {[%clk 0:02:11]} 18. Rad1 {[%clk 0:00:48]}  Nc5 {[%clk 0:02:08]} 19. Rfe1 {[%clk 0:00:42]}  Rfd8 {[%clk 0:01:59]} 20. Bf1 {[%clk 0:00:41]}  Rxd1 {[%clk 0:01:55]} 21. Rxd1 {[%clk 0:00:40]}  h6 {[%clk 0:01:51]} 22. b4 {[%clk 0:00:39]}  Na6 {[%clk 0:01:45]} 23. a3 {[%clk 0:00:38]}  c5 {[%clk 0:01:39]} 24. b5 {[%clk 0:00:37]}  Nc7 {[%clk 0:01:38]} 25. g3 {[%clk 0:00:35]}  Ne6 {[%clk 0:01:36]} 26. Qe4 {[%clk 0:00:34]}  Rd8 {[%clk 0:01:16]} 27. Rxd8+ {[%clk 0:00:31]}  Nxd8 {[%clk 0:01:16]} 28. Qxe7 {[%clk 0:00:30]}  Bxe7 {[%clk 0:01:17]} 29. Bg2 {[%clk 0:00:30]}  b6 {[%clk 0:01:16]} 30. Bd5 {[%clk 0:00:30]}  Ne6 {[%clk 0:01:14]} 31. Bxe6 {[%clk 0:00:29]}  fxe6 {[%clk 0:01:14]} 32. Bf4 {[%clk 0:00:30]}  Kf7 {[%clk 0:01:08]} 33. Bb8 {[%clk 0:00:28]}  Bd8 {[%clk 0:01:05]} 34. a4 {[%clk 0:00:27]}  Ke7 {[%clk 0:01:04]} 35. Kf1 {[%clk 0:00:25]}  Kd7 {[%clk 0:01:04]} 36. Bxa7 {[%clk 0:00:25]}  Bc7 {[%clk 0:00:38]} 37. Ke2 {[%clk 0:00:24]}  Kc8 {[%clk 0:00:31]} 38. a5 {[%clk 0:00:24]}  bxa5 {[%clk 0:00:30]} 39. Bxc5 {[%clk 0:00:24]}  a4 {[%clk 0:00:29]} 40. Kd3 {[%clk 0:00:24]}  Be5 {[%clk 0:00:28]} 41. f4 {[%clk 0:00:22]}  Bb2 {[%clk 0:00:28]} 42. Bd4 {[%clk 0:00:21]} 1-0


[Site "https://www.chess.com"]

[Event "Titled Tuesday Blitz October 04 Early 2022"]
[White "Kopczynski, Michal"]
[Black "Hakobyan, Aram"]
[WhiteFideId "1124200"]
[BlackFideId "13306677"]
[WhiteElo "2235"]
[BlackElo "2563"]
[Result "0-1"]
[Round "01"]
[TimeControl "180+1"]
[Date "2022.10.04"]
[WhiteClock "0:01:40"]
[BlackClock "0:01:52"]

1. e4 {[%clk 0:03:00]}  c5 {[%clk 0:02:59]} 2. d4 {[%clk 0:03:01]}  d6 {[%clk 0:03:00]} 3. dxc5 {[%clk 0:03:00]}  Nf6 {[%clk 0:03:00]} 4. e5 {[%clk 0:02:50]}  dxe5 {[%clk 0:03:00]} 5. Qxd8+ {[%clk 0:02:49]}  Kxd8 {[%clk 0:03:01]} 6. Nc3 {[%clk 0:02:45]}  Nbd7 {[%clk 0:02:57]} 7. Be3 {[%clk 0:02:37]}  Ng4 {[%clk 0:02:56]} 8. O-O-O {[%clk 0:02:33]}  Nxe3 {[%clk 0:02:55]} 9. fxe3 {[%clk 0:02:34]}  e6 {[%clk 0:02:52]} 10. Ne4 {[%clk 0:02:32]}  Kc7 {[%clk 0:02:43]} 11. Nf3 {[%clk 0:02:14]}  Nxc5 {[%clk 0:02:33]} 12. Nxc5 {[%clk 0:01:58]}  Bxc5 {[%clk 0:02:33]} 13. Nxe5 {[%clk 0:01:58]}  Bxe3+ {[%clk 0:02:31]} 14. Kb1 {[%clk 0:01:58]}  f6 {[%clk 0:02:32]} 15. Nc4 {[%clk 0:01:57]}  Bc5 {[%clk 0:02:31]} 16. Bd3 {[%clk 0:01:56]}  e5 {[%clk 0:02:28]} 17. Rhe1 {[%clk 0:01:54]}  Bg4 {[%clk 0:02:28]} 18. Be2 {[%clk 0:01:53]}  Bxe2 {[%clk 0:02:27]} 19. Rxe2 {[%clk 0:01:54]}  Rad8 {[%clk 0:02:28]} 20. Rxd8 {[%clk 0:01:47]}  Rxd8 {[%clk 0:02:29]} 21. Kc1 {[%clk 0:01:47]}  b5 {[%clk 0:02:28]} 22. Nd2 {[%clk 0:01:46]}  Kc6 {[%clk 0:02:18]} 23. Ne4 {[%clk 0:01:45]}  Be7 {[%clk 0:02:16]} 24. g4 {[%clk 0:01:44]}  h5 {[%clk 0:01:52]} 25. gxh5 {[%clk 0:01:43]}  f5 {[%clk 0:01:52]} 26. Ng3 {[%clk 0:01:43]}  Bg5+ {[%clk 0:01:52]} 27. Kb1 {[%clk 0:01:40]}  Rd1# {[%clk 0:01:52]} 0-1


[Site "https://www.chess.com"]

[Event "Titled Tuesday Blitz October 04 Early 2022"]
[White "Mahajan, Rushaan"]
[Black "Bacrot, Etienne"]
[WhiteFideId "30934222"]
[BlackFideId "605506"]
[WhiteElo "2148"]
[BlackElo "2666"]
[Result "0-1"]
[Round "01"]
[TimeControl "180+1"]
[Date "2022.10.04"]
[WhiteClock "0:00:18"]
[BlackClock "0:00:26"]

1. Nf3 {[%clk 0:03:00]}  c5 {[%clk 0:02:39]} 2. c4 {[%clk 0:02:58]}  Nc6 {[%clk 0:02:39]} 3. Nc3 {[%clk 0:02:58]}  g6 {[%clk 0:02:39]} 4. g3 {[%clk 0:02:54]}  Bg7 {[%clk 0:02:38]} 5. Bg2 {[%clk 0:02:55]}  e5 {[%clk 0:02:38]} 6. d3 {[%clk 0:02:54]}  Nge7 {[%clk 0:02:37]} 7. O-O {[%clk 0:02:53]}  O-O {[%clk 0:02:37]} 8. Nd2 {[%clk 0:02:53]}  d6 {[%clk 0:02:37]} 9. Nd5 {[%clk 0:02:52]}  Be6 {[%clk 0:02:28]} 10. Nb1 {[%clk 0:02:48]}  Qd7 {[%clk 0:02:20]} 11. Nbc3 {[%clk 0:02:41]}  Bh3 {[%clk 0:02:18]} 12. Bd2 {[%clk 0:02:31]}  Bxg2 {[%clk 0:02:13]} 13. Kxg2 {[%clk 0:02:32]}  f5 {[%clk 0:02:13]} 14. f4 {[%clk 0:02:16]}  Rae8 {[%clk 0:02:05]} 15. e3 {[%clk 0:02:12]}  Nxd5 {[%clk 0:02:01]} 16. Nxd5 {[%clk 0:02:12]}  exf4 {[%clk 0:02:00]} 17. gxf4 {[%clk 0:02:04]}  Bxb2 {[%clk 0:02:00]} 18. Rb1 {[%clk 0:02:04]}  Bg7 {[%clk 0:01:59]} 19. Kf2 {[%clk 0:01:56]}  Ne7 {[%clk 0:01:57]} 20. Qf3 {[%clk 0:01:53]}  b6 {[%clk 0:01:47]} 21. h4 {[%clk 0:01:43]}  Nxd5 {[%clk 0:01:46]} 22. Qxd5+ {[%clk 0:01:43]}  Qf7 {[%clk 0:01:46]} 23. Qf3 {[%clk 0:01:42]}  Rd8 {[%clk 0:01:43]} 24. h5 {[%clk 0:01:30]}  d5 {[%clk 0:01:43]} 25. hxg6 {[%clk 0:01:30]}  hxg6 {[%clk 0:01:43]} 26. Rh1 {[%clk 0:01:30]}  dxc4 {[%clk 0:01:35]} 27. Qh3 {[%clk 0:01:30]}  Rfe8 {[%clk 0:01:21]} 28. Rbg1 {[%clk 0:01:08]}  Kf8 {[%clk 0:00:45]} 29. Qh7 {[%clk 0:00:51]}  Rxd3 {[%clk 0:00:39]} 30. Bc1 {[%clk 0:00:51]}  Re6 {[%clk 0:00:29]} 31. Rg5 {[%clk 0:00:34]}  c3 {[%clk 0:00:29]} 32. Rhg1 {[%clk 0:00:33]}  Rdd6 {[%clk 0:00:29]} 33. e4 {[%clk 0:00:18]}  Bd4+ {[%clk 0:00:27]} 34. Kf3 {[%clk 0:00:18]}  fxe4+ {[%clk 0:00:26]} 0-1


[Site "https://www.chess.com"]

[Event "Titled Tuesday Blitz October 04 Early 2022"]
[White "Mitrabha, Guha"]
[Black "Rakhimgaliyev, Yerlan"]
[WhiteFideId "5057000"]
[BlackFideId "13705148"]
[WhiteElo "2526"]
[BlackElo "2261"]
[Result "1-0"]
[Round "01"]
[TimeControl "180+1"]
[Date "2022.10.04"]
[WhiteClock "0:02:26"]
[BlackClock "0:00:27"]

1. b3 {[%clk 0:02:59]}  d5 {[%clk 0:02:56]} 2. Bb2 {[%clk 0:03:00]}  Nf6 {[%clk 0:02:57]} 3. Nf3 {[%clk 0:02:59]}  c5 {[%clk 0:02:55]} 4. e3 {[%clk 0:02:59]}  Nc6 {[%clk 0:02:56]} 5. Bb5 {[%clk 0:02:58]}  Bf5 {[%clk 0:02:52]} 6. O-O {[%clk 0:02:56]}  e6 {[%clk 0:02:52]} 7. d3 {[%clk 0:02:53]}  Be7 {[%clk 0:02:49]} 8. Nbd2 {[%clk 0:02:52]}  O-O {[%clk 0:02:48]} 9. Bxc6 {[%clk 0:02:52]}  bxc6 {[%clk 0:02:49]} 10. Qe2 {[%clk 0:02:52]}  Qa5 {[%clk 0:02:33]} 11. Ne5 {[%clk 0:02:51]}  Qa6 {[%clk 0:02:29]} 12. f4 {[%clk 0:02:50]}  h5 {[%clk 0:02:18]} 13. Ndf3 {[%clk 0:02:45]}  Rfd8 {[%clk 0:02:12]} 14. h3 {[%clk 0:02:44]}  Nd7 {[%clk 0:02:05]} 15. g4 {[%clk 0:02:39]}  hxg4 {[%clk 0:01:46]} 16. hxg4 {[%clk 0:02:38]}  Be4 {[%clk 0:01:44]} 17. Nxd7 {[%clk 0:02:32]}  Rxd7 {[%clk 0:01:42]} 18. Ne5 {[%clk 0:02:32]}  Rc7 {[%clk 0:01:38]} 19. Qh2 {[%clk 0:02:32]}  Bh7 {[%clk 0:01:16]} 20. Rf3 {[%clk 0:02:31]}  f6 {[%clk 0:01:16]} 21. Rh3 {[%clk 0:02:30]}  fxe5 {[%clk 0:01:11]} 22. Bxe5 {[%clk 0:02:29]}  Bf6 {[%clk 0:01:09]} 23. Rxh7 {[%clk 0:02:26]}  Bxe5 {[%clk 0:01:07]} 24. fxe5 {[%clk 0:02:27]}  Rac8 {[%clk 0:00:27]} 25. Rf1 {[%clk 0:02:26]} 1-0


[Site "https://www.chess.com"]

[Event "Titled Tuesday Blitz October 04 Early 2022"]
[White "Nakamura, Hikaru"]
[Black "Kopjonkin, Kirill"]
[WhiteFideId "2016192"]
[BlackFideId "24140090"]
[WhiteElo "2909"]
[BlackElo "2247"]
[Result "1-0"]
[Round "01"]
[TimeControl "180+1"]
[Date "2022.10.04"]
[WhiteClock "0:01:05"]
[BlackClock "0:00:08"]

1. Nf3 {[%clk 0:03:00]}  Nf6 {[%clk 0:02:59]} 2. g3 {[%clk 0:03:00]}  g6 {[%clk 0:02:59]} 3. Bg2 {[%clk 0:03:00]}  Bg7 {[%clk 0:02:55]} 4. d3 {[%clk 0:03:00]}  O-O {[%clk 0:02:55]} 5. e4 {[%clk 0:03:00]}  d6 {[%clk 0:02:54]} 6. O-O {[%clk 0:02:59]}  c5 {[%clk 0:02:36]} 7. Re1 {[%clk 0:02:53]}  Nc6 {[%clk 0:02:36]} 8. Nbd2 {[%clk 0:02:53]}  Rb8 {[%clk 0:02:34]} 9. h3 {[%clk 0:02:47]}  Nd7 {[%clk 0:02:26]} 10. Nf1 {[%clk 0:02:45]}  b5 {[%clk 0:02:26]} 11. Ne3 {[%clk 0:02:45]}  b4 {[%clk 0:02:25]} 12. Nh2 {[%clk 0:02:39]}  a5 {[%clk 0:02:22]} 13. f4 {[%clk 0:02:39]}  Bb7 {[%clk 0:02:22]} 14. h4 {[%clk 0:02:37]}  a4 {[%clk 0:02:14]} 15. Rb1 {[%clk 0:02:35]}  Nb6 {[%clk 0:01:50]} 16. h5 {[%clk 0:02:32]}  Nd4 {[%clk 0:01:41]} 17. f5 {[%clk 0:02:28]}  Be5 {[%clk 0:01:28]} 18. Qg4 {[%clk 0:02:09]}  Qd7 {[%clk 0:01:15]} 19. Nf3 {[%clk 0:01:51]}  Nxf3+ {[%clk 0:01:09]} 20. Qxf3 {[%clk 0:01:42]}  Kh8 {[%clk 0:01:06]} 21. Ng4 {[%clk 0:01:42]}  Bd4+ {[%clk 0:00:58]} 22. Be3 {[%clk 0:01:42]}  gxf5 {[%clk 0:00:54]} 23. Bxd4+ {[%clk 0:01:41]}  cxd4 {[%clk 0:00:54]} 24. Qxf5 {[%clk 0:01:33]}  Qxf5 {[%clk 0:00:55]} 25. exf5 {[%clk 0:01:34]}  Bxg2 {[%clk 0:00:43]} 26. Kxg2 {[%clk 0:01:34]}  Rg8 {[%clk 0:00:43]} 27. Nh6 {[%clk 0:01:28]}  Nd5 {[%clk 0:00:38]} 28. Nxg8 {[%clk 0:01:26]}  Rxg8 {[%clk 0:00:39]} 29. Kf3 {[%clk 0:01:22]}  Rc8 {[%clk 0:00:36]} 30. Re4 {[%clk 0:01:21]}  Rxc2 {[%clk 0:00:18]} 31. Rxd4 {[%clk 0:01:21]}  e6 {[%clk 0:00:19]} 32. fxe6 {[%clk 0:01:09]}  fxe6 {[%clk 0:00:20]} 33. Re1 {[%clk 0:01:09]}  Ne7 {[%clk 0:00:09]} 34. Rxe6 {[%clk 0:01:05]}  Nf5 {[%clk 0:00:08]} 35. Rf4 {[%clk 0:01:05]} 1-0


[Site "https://www.chess.com"]

[Event "Titled Tuesday Blitz October 04 Early 2022"]
[White "Ovchinnikov, Vsevolod"]
[Black "Bluebaum, Matthias"]
[WhiteFideId "24176842"]
[BlackFideId "24651516"]
[WhiteElo "2376"]
[BlackElo "2633"]
[Result "0-1"]
[Round "01"]
[TimeControl "180+1"]
[Date "2022.10.04"]
[WhiteClock "0:00:05"]
[BlackClock "0:00:57"]

1. Nf3 {[%clk 0:03:00]}  d5 {[%clk 0:02:46]} 2. c4 {[%clk 0:03:01]}  d4 {[%clk 0:02:46]} 3. e3 {[%clk 0:03:01]}  c5 {[%clk 0:02:46]} 4. b4 {[%clk 0:03:01]}  Nf6 {[%clk 0:02:46]} 5. bxc5 {[%clk 0:03:01]}  Nc6 {[%clk 0:02:44]} 6. exd4 {[%clk 0:02:50]}  Nxd4 {[%clk 0:02:45]} 7. Bb2 {[%clk 0:02:50]}  e5 {[%clk 0:02:45]} 8. Nxd4 {[%clk 0:02:36]}  exd4 {[%clk 0:02:44]} 9. Bd3 {[%clk 0:02:37]}  Bxc5 {[%clk 0:02:41]} 10. O-O {[%clk 0:02:33]}  O-O {[%clk 0:02:41]} 11. Na3 {[%clk 0:02:33]}  Bg4 {[%clk 0:02:36]} 12. Qb3 {[%clk 0:02:30]}  b6 {[%clk 0:02:33]} 13. Nc2 {[%clk 0:02:28]}  Qd6 {[%clk 0:02:33]} 14. Rae1 {[%clk 0:02:20]}  a5 {[%clk 0:02:26]} 15. a4 {[%clk 0:02:15]}  Bd7 {[%clk 0:02:25]} 16. Na3 {[%clk 0:02:10]}  Ng4 {[%clk 0:02:19]} 17. f4 {[%clk 0:02:06]}  Rae8 {[%clk 0:02:17]} 18. Rxe8 {[%clk 0:02:03]}  Rxe8 {[%clk 0:02:18]} 19. h3 {[%clk 0:02:03]}  Nf6 {[%clk 0:02:13]} 20. Nb5 {[%clk 0:02:02]}  Bxb5 {[%clk 0:02:10]} 21. cxb5 {[%clk 0:02:02]}  Ne4 {[%clk 0:02:01]} 22. Bxe4 {[%clk 0:01:03]}  Rxe4 {[%clk 0:02:02]} 23. Qf3 {[%clk 0:00:50]}  f5 {[%clk 0:01:49]} 24. d3 {[%clk 0:00:45]}  Re3 {[%clk 0:01:50]} 25. Qa8+ {[%clk 0:00:44]}  Kf7 {[%clk 0:01:50]} 26. Rf3 {[%clk 0:00:40]}  Re1+ {[%clk 0:01:42]} 27. Kh2 {[%clk 0:00:36]}  Qe6 {[%clk 0:01:41]} 28. Qb7+ {[%clk 0:00:32]}  Kf8 {[%clk 0:01:12]} 29. Qa8+ {[%clk 0:00:31]}  Qe8 {[%clk 0:01:12]} 30. Qd5 {[%clk 0:00:23]}  Qf7 {[%clk 0:00:58]} 31. Qxf7+ {[%clk 0:00:10]}  Kxf7 {[%clk 0:00:59]} 32. Rf2 {[%clk 0:00:10]}  g6 {[%clk 0:00:58]} 33. Rc2 {[%clk 0:00:08]}  Ke6 {[%clk 0:00:57]} 34. Bc1 {[%clk 0:00:07]}  Kd5 {[%clk 0:00:57]} 35. Kg3 {[%clk 0:00:06]}  Rd1 {[%clk 0:00:55]} 36. Bd2 {[%clk 0:00:06]}  Ra1 {[%clk 0:00:56]} 37. Rc4 {[%clk 0:00:05]}  Ra3 {[%clk 0:00:57]} 38. Rc2 {[%clk 0:00:05]}  Rxd3+ {[%clk 0:00:57]} 39. Kf2 {[%clk 0:00:06]}  Ra3 {[%clk 0:00:57]} 40. Rc1 {[%clk 0:00:05]}  Rxa4 {[%clk 0:00:57]} 41. Kf3 {[%clk 0:00:05]}  Ra3+ {[%clk 0:00:57]} 0-1


[Site "https://www.chess.com"]